bitfinex-derivatives/quotes_ETHF0:USTF0_20260312
["timestamp","ask_amount","ask_price","bid_price","bid_amount"]
[1773356698228,17.27905117,2081.0,2080.2,0.00452751]
[1773356699022,17.27905117,2081.0,2080.3,17.17266922]
[1773356699223,17.27905117,2081.0,2080.4,0.022]
[1773356700330,17.27905117,2081.0,2080.2,5.88136875]
[1773356700331,17.27905117,2081.0,2080.2,0.02652751]
[1773356701626,17.27905117,2080.7,2080.0,0.022]
[1773356701822,17.34505117,2080.8,2080.0,17.19466922]
[1773356702027,31.19105117,2080.8,2080.0,17.19466922]
[1773356702223,8.409,2082.2,2080.2,17.17266922]
[1773356702224,17.27905117,2081.4,2080.2,17.17266922]
[1773356702428,17.27905117,2081.4,2080.5,23.02751046]
[1773356702622,17.28314548,2081.4,2080.7,5.85484124]
[1773356702822,17.28314548,2081.4,2080.6,5.85484124]
[1773356703023,17.28314548,2081.4,2080.3,5.85484124]
[1773356703228,17.28314548,2081.4,2080.3,23.02751046]
[1773356703930,17.27905117,2081.2,2080.4,5.85484124]
[1773356704632,17.27905117,2081.2,2080.5,5.85484124]
[1773356705937,17.27905117,2081.2,2080.6,5.87555284]
[1773356706228,17.27905117,2081.2,2080.5,3.8250625]
[1773356706430,17.27905117,2081.2,2080.6,1.82063485]
[1773356706637,17.27905117,2081.2,2080.1,0.00367792]
[1773356710931,17.27905117,2081.2,2080.1,17.17634714]
[1773356711231,17.27905117,2081.0,2080.1,0.00367792]
[1773356711439,17.27905117,2081.0,2080.2,0.24032]
[1773356711737,0.00409431,2081.4,2080.2,0.24032]
[1773356711738,31.13805117,2080.9,2080.2,0.24032]
[1773356711929,17.27905117,2080.8,2080.2,0.24032]
[1773356712128,17.27905117,2080.8,2080.1,0.00367792]
[1773356712330,17.27905117,2080.8,2080.1,17.17634714]
[1773356712533,17.27905117,2081.2,2080.1,17.41666714]
[1773356712933,17.27905117,2081.2,2080.1,24.69603896]
[1773356713138,17.27905117,2081.2,2080.2,17.17266922]
[1773356713635,17.27905117,2081.2,2080.1,7.52336974]
[1773356713839,17.27905117,2081.2,2080.1,0.24399792]
[1773356714138,17.27905117,2081.2,2080.1,17.41666714]
[1773356714436,17.25705117,2081.2,2080.6,0.022]
[1773356715339,17.27905117,2081.0,2080.6,0.022]
[1773356715540,17.27905117,2080.8,2080.6,0.022]
[1773356717045,17.27905117,2080.8,2080.2,0.022]
[1773356718540,17.27905117,2080.8,2080.3,5.54862423]
[1773356718841,17.27905117,2080.8,2080.2,0.022]
[1773356719045,17.27905117,2080.8,2080.3,5.54862595]
[1773356719340,17.27905117,2081.2,2080.4,5.54626985]
[1773356719536,17.27905117,2081.2,2080.5,5.54626985]
[1773356719736,17.27905117,2081.2,2081.0,0.022]
[1773356719737,17.25705117,2081.2,2081.0,0.022]
[1773356719937,13.12254771,2081.2,2080.8,0.022]
[1773356720236,13.12254771,2081.2,2080.9,5.54446746]
[1773356720432,13.12254771,2081.2,2080.8,0.022]
[1773356720633,13.16654771,2081.2,2080.9,5.54517638]
[1773356720829,13.16654771,2081.2,2080.8,0.022]
[1773356721031,13.16654771,2081.2,2080.9,5.544735]
[1773356721240,13.16654771,2081.2,2080.8,0.022]
[1773356721440,13.16654771,2081.2,2080.9,5.54561922]
[1773356721640,13.16654771,2081.2,2080.8,0.022]
[1773356721841,13.16654771,2081.2,2080.9,5.54562046]
[1773356722038,13.16654771,2081.2,2080.8,0.022]
[1773356722941,13.16654771,2081.2,2080.6,0.022]
[1773356723141,18.67360666,2081.0,2080.6,0.022]
[1773356724343,18.73960666,2081.1,2080.6,17.74400306]
[1773356724841,18.73960666,2081.1,2080.6,0.022]
[1773356728038,32.57860666,2081.1,2080.6,0.022]
[1773356728344,18.67360666,2081.0,2080.6,0.022]
[1773356729037,18.67360666,2081.0,2080.4,0.022]
[1773356729338,18.76160666,2081.0,2080.4,0.022]
[1773356731446,18.76160666,2081.0,2080.4,17.74400306]
[1773356731746,0.00409431,2081.4,2080.3,0.24031]
[1773356731747,18.67360666,2080.8,2080.3,0.24031]
[1773356732838,18.67360666,2080.8,2080.3,17.96231306]
[1773356733543,18.67360666,2080.8,2080.2,0.022]
[1773356733749,18.67360666,2080.8,2080.0,0.022]
[1773356733750,18.80560666,2080.8,2080.0,0.022]
[1773356734041,18.67360666,2080.6,2079.9,17.96235306]
[1773356734641,18.67360666,2080.6,2079.9,17.96422903]
[1773356734948,16.20633666,2080.6,2079.9,17.96422903]
[1773356735145,0.154,2080.7,2079.9,20.73545404]
[1773356736456,0.154,2080.7,2080.1,17.72200306]
[1773356737650,18.82760666,2080.7,2080.0,19.52054998]
[1773356737852,18.82760666,2080.7,2080.1,17.72200306]
[1773356739046,0.154,2080.7,2080.1,23.65255304]
[1773356739248,0.154,2080.7,2080.3,17.96231306]
[1773356739550,18.82760666,2080.7,2080.3,17.96231306]
[1773356740050,18.82760666,2080.7,2080.1,17.72200306]
[1773356740547,18.82760666,2080.7,2080.0,19.52354998]
[1773356740751,18.82760666,2080.7,2079.9,17.72387903]
[1773356741447,18.82760666,2080.7,2079.9,0.00187597]
[1773356742147,18.82760666,2080.7,2079.8,0.26236]
[1773356744044,18.82760666,2080.7,2079.8,0.022]
[1773356744445,17.1904838,2080.5,2079.6,0.022]
[1773356744651,17.1904838,2080.3,2079.6,0.022]
[1773356745752,17.1904838,2080.3,2079.4,0.022]
[1773356747847,17.1904838,2080.3,2079.2,0.022]
[1773356748053,17.1904838,2080.3,2079.2,17.11071645]
[1773356748745,17.1904838,2080.3,2079.2,0.022]
[1773356749360,17.1904838,2080.1,2079.2,0.022]
[1773356749658,17.1904838,2079.9,2078.8,0.022]
[1773356749850,17.1904838,2079.9,2078.4,0.022]
[1773356749851,17.1904838,2079.2,2078.4,0.022]
[1773356750050,2.77122501,2079.6,2078.4,0.022]
[1773356750051,17.1904838,2079.0,2078.4,0.022]
[1773356750250,17.1904838,2078.9,2078.4,0.022]
[1773356750853,17.1904838,2078.9,2078.2,0.022]
[1773356752155,17.1904838,2078.9,2078.0,0.022]
[1773356752346,17.1904838,2078.9,2078.0,17.65398286]
[1773356754445,31.0374838,2078.9,2078.0,17.65398286]
[1773356754652,18.52474673,2078.8,2078.0,17.60565383]
[1773356757753,18.52474673,2079.6,2078.2,17.63198286]
[1773356758052,13.853,2079.5,2078.4,17.63198286]
[1773356758251,18.52474673,2079.4,2078.4,17.63198286]
[1773356759652,18.52474673,2079.4,2078.5,17.87250286]
[1773356760560,18.52474673,2079.4,2078.5,0.24052]
[1773356761059,13.853,2079.5,2078.0,17.63198286]
[1773356761060,18.52474673,2079.2,2078.0,17.63198286]
[1773356761258,18.52474673,2079.0,2078.1,17.87254286]
[1773356761558,18.52474673,2079.0,2077.9,3.92721785]
[1773356761559,18.52474673,2078.8,2077.9,17.63198286]
[1773356761858,18.52474673,2078.6,2077.9,17.63198286]
[1773356762054,18.52474673,2078.5,2077.9,17.63198286]
[1773356763257,13.852,2078.6,2077.9,17.63198286]
[1773356763450,18.52474673,2078.6,2077.9,17.63198286]
[1773356763950,18.52474673,2079.2,2077.9,17.63198286]
[1773356764155,18.52474673,2079.1,2078.3,17.63198286]
[1773356765062,18.52474673,2079.1,2078.4,0.24053]
[1773356765364,18.52474673,2079.1,2078.5,17.63198286]
[1773356765664,32.37874673,2079.1,2078.5,17.63198286]
[1773356765861,18.52474673,2079.0,2078.5,17.63198286]
[1773356766662,18.52474673,2079.0,2078.4,0.24053]
[1773356767763,13.854,2079.1,2078.5,17.63198286]
[1773356768063,32.37874673,2079.1,2078.5,17.63198286]
[1773356768457,18.52474673,2079.0,2078.5,17.63198286]
[1773356768862,18.52474673,2079.0,2078.4,0.24053]
[1773356769857,18.52474673,2079.0,2078.3,17.63198286]
[1773356770065,18.52474673,2079.0,2078.0,17.63198286]
[1773356773662,18.52474673,2079.0,2077.9,0.24058]
[1773356773860,18.52474673,2079.0,2077.9,17.87256286]
[1773356775862,18.52474673,2079.0,2078.3,17.87252286]
[1773356776059,18.52474673,2078.9,2078.3,0.24054]
[1773356776369,18.52474673,2078.9,2078.1,17.63198286]
[1773356776566,18.52474673,2078.9,2077.9,17.63198286]
[1773356776963,18.52474673,2078.9,2078.0,0.24057]
[1773356777165,4.23578053,2079.4,2078.3,17.63198286]
[1773356777166,32.37674673,2078.8,2078.3,17.63198286]
[1773356777778,18.52474673,2078.7,2078.3,17.63198286]
[1773356778175,18.52474673,2078.7,2078.2,17.87253286]
[1773356778979,18.52474673,2078.6,2078.2,17.63198286]
[1773356779369,18.52474673,2079.2,2078.2,17.63198286]
[1773356779571,18.52474673,2079.4,2078.8,17.63198286]
[1773356779777,18.52474673,2079.3,2078.8,17.63198286]
[1773356779980,18.52474673,2079.3,2078.6,21.55920071]
[1773356780376,18.52474673,2079.3,2078.5,3.92721785]
[1773356780582,18.52474673,2079.3,2078.4,3.92721785]
[1773356780880,18.52474673,2079.3,2078.3,21.81535245]
[1773356781174,18.52474673,2079.3,2078.4,21.81535245]
[1773356781773,0.374,2079.7,2078.9,17.8881346]
[1773356782082,0.1005358,2079.7,2079.2,21.81535245]
[1773356782279,16.69768337,2079.9,2079.2,21.81535245]
[1773356782477,16.67568337,2079.9,2079.5,0.022]
[1773356783682,16.69431129,2079.7,2079.1,17.9101346]
[1773356783982,0.066,2079.7,2079.1,17.9101346]
[1773356784872,0.066,2079.7,2079.1,18.1505746]
[1773356785077,0.066,2079.7,2079.3,17.8881346]
[1773356787181,6.03721252,2080.9,2079.3,17.8881346]
[1773356787182,16.69431129,2080.8,2079.5,21.81535245]
[1773356787479,14.0992,2081.3,2079.4,13.86141]
[1773356787480,16.69431129,2080.6,2080.0,0.022]
[1773356787681,16.69431129,2080.4,2079.8,17.9101346]
[1773356788184,0.11,2080.5,2079.8,17.91447043]
[1773356788682,16.80431129,2080.5,2079.8,17.91447043]
[1773356789287,0.11346173,2080.5,2079.8,17.91447043]
[1773356790485,16.69431129,2082.0,2080.7,17.8881346]
[1773356790684,16.69431129,2082.0,2080.9,17.8881346]
[1773356790987,16.67231129,2082.0,2081.8,0.022]
[1773356791184,16.67231129,2082.0,2081.6,0.022]
[1773356791581,0.03160381,2082.0,2081.6,16.41853584]
[1773356792588,0.03732941,2082.0,2081.6,16.41853584]
[1773356792789,16.61566367,2082.0,2081.6,0.02703831]
[1773356792984,16.57833426,2081.8,2081.4,16.41349753]
[1773356793291,0.05360381,2081.9,2081.4,16.41349753]
[1773356793984,16.57833426,2082.3,2081.4,16.39149753]
[1773356793985,13.898,2082.2,2081.4,16.39149753]
[1773356794283,13.876,2082.2,2082.0,0.022]
[1773356794685,30.45433426,2082.2,2082.0,0.022]
[1773356794883,30.45863867,2082.2,2082.0,0.02810783]
[1773356795084,30.48863867,2082.2,2082.0,0.02810783]
[1773356796289,30.48863867,2082.2,2081.8,0.022]
[1773356796489,30.53263867,2082.2,2081.8,0.022]
[1773356796790,16.57833426,2082.1,2081.6,0.022]
[1773356796992,16.64433426,2082.1,2081.6,16.41349753]
[1773356797286,0.066,2082.1,2081.6,16.4173816]
[1773356800497,16.64433426,2082.1,2081.6,16.4173816]
[1773356800893,16.64433426,2082.1,2081.6,0.02588407]
[1773356801496,16.57833426,2081.9,2081.4,0.022]
[1773356802094,30.51233426,2081.8,2081.4,0.022]
[1773356802594,30.51333426,2081.8,2081.4,0.02676291]
[1773356802799,30.51333426,2081.8,2081.4,16.41826044]
[1773356802995,0.088,2082.0,2081.2,17.63748073]
[1773356803199,0.00430441,2082.2,2081.3,17.61548073]
[1773356803200,17.56089103,2082.2,2081.3,17.61548073]
[1773356803699,17.55658662,2082.1,2081.4,17.61548073]
[1773356803898,17.55658662,2082.1,2081.4,17.61881459]
[1773356804095,17.55658662,2082.1,2081.7,0.022]
[1773356804293,17.55658662,2082.1,2081.5,17.63748073]
[1773356804697,17.60058662,2082.1,2081.5,17.63748073]
[1773356804894,0.066,2082.0,2081.5,17.63748073]
[1773356805497,17.62258662,2082.0,2081.5,17.63748073]
[1773356806302,17.62258662,2082.0,2081.5,0.022]
[1773356806598,17.55658662,2081.8,2080.7,17.63748073]
[1773356806804,17.55658662,2081.6,2080.7,17.63748073]
[1773356807008,17.55658662,2081.4,2080.7,17.63748073]
[1773356810201,3.01407076,2082.3,2080.7,17.63748073]
[1773356810202,17.55658662,2083.0,2081.7,17.61548073]
[1773356810403,17.55658662,2083.0,2081.9,17.61548073]
[1773356810598,16.76323408,2082.9,2082.6,0.022]
[1773356810901,16.75690854,2082.9,2082.6,0.022]
[1773356811304,16.76191802,2082.9,2082.6,0.02607872]
[1773356811605,0.01133502,2082.9,2082.6,0.02607872]
[1773356812310,0.044,2083.0,2082.6,16.18161812]
[1773356812507,16.75690854,2083.1,2082.6,16.15961812]
[1773356812702,6.13741058,2084.3,2082.9,16.1775394]
[1773356812703,16.75690854,2084.2,2082.9,16.1775394]
[1773356813205,16.76213322,2084.2,2082.9,16.1775394]
[1773356813411,16.75690854,2084.0,2082.9,16.1775394]
[1773356813809,0.00522468,2084.2,2083.1,16.1555394]
[1773356814010,13.84322468,2084.2,2083.1,16.1555394]
[1773356814309,0.00522468,2084.2,2083.1,16.1555394]
[1773356815709,16.75690854,2084.1,2083.1,16.1555394]
[1773356815909,30.61490854,2084.0,2083.1,16.1555394]
[1773356816409,16.75690854,2083.9,2083.1,16.1555394]
[1773356817314,16.75690854,2083.9,2082.9,16.1775394]
[1773356817911,16.76213322,2084.2,2082.9,16.1775394]
[1773356818212,16.75690854,2084.9,2083.9,16.1555394]
[1773356818410,16.75690854,2084.9,2084.0,16.1555394]
[1773356818720,16.75690854,2084.9,2084.5,0.022]
[1773356818721,16.73490854,2084.9,2084.5,0.022]
[1773356818913,16.73490854,2084.9,2084.3,0.022]
[1773356819211,16.73975347,2084.9,2084.3,0.02543243]
[1773356819415,0.066,2084.8,2084.3,16.18097183]
[1773356820314,0.066,2084.8,2084.2,16.1555394]
[1773356820519,0.00484493,2084.9,2084.2,16.1555394]
[1773356821011,0.00484493,2084.9,2084.0,13.733]
[1773356821012,16.75690854,2085.0,2084.0,16.1555394]
[1773356821415,30.66890854,2084.9,2084.0,16.1555394]
[1773356821610,16.75690854,2084.8,2084.0,16.1555394]
[1773356821813,16.76233409,2084.8,2084.0,0.00533839]
[1773356822316,13.92,2084.7,2084.0,0.00533839]
[1773356822513,16.75690854,2084.6,2084.0,0.00533839]
[1773356822915,16.72010854,2084.6,2084.0,0.00533839]
[1773356823116,16.75690854,2084.4,2084.0,0.00533839]
[1773356823317,16.75690854,2084.4,2083.6,16.1555394]
[1773356823721,13.934,2084.5,2083.6,16.1555394]
[1773356824025,16.76233409,2084.8,2083.6,16.1555394]
[1773356824323,16.76233409,2084.8,2083.7,16.1555394]
[1773356825723,16.75690854,2084.6,2083.7,16.1555394]
[1773356826514,16.75690854,2084.4,2083.6,0.00338911]
[1773356827217,16.75690854,2084.4,2083.0,16.1555394]
[1773356828119,30.72090854,2084.3,2083.0,16.15999336]
[1773356828320,16.75690854,2084.3,2083.0,16.15999336]
[1773356828515,13.966,2084.2,2083.0,16.15999336]
[1773356828915,30.72490854,2084.2,2083.0,16.15999336]
[1773356829120,16.75690854,2084.1,2083.1,16.1555394]
[1773356830322,16.73291046,2084.1,2083.1,16.1555394]
[1773356830526,16.75690854,2084.2,2083.1,16.1555394]
[1773356831625,13.973,2084.1,2083.1,16.1555394]
[1773356831825,30.72990854,2084.1,2083.1,16.1555394]
[1773356832321,16.75690854,2084.0,2083.1,16.1555394]
[1773356834223,16.75690854,2084.0,2083.7,0.022]
[1773356834526,16.75690854,2084.0,2083.5,0.022]
[1773356835529,16.75690854,2084.0,2083.5,16.1775394]
[1773356835726,16.75690854,2084.1,2083.5,16.1775394]
[1773356835927,16.75690854,2084.0,2083.5,0.022]
[1773356836631,16.75690854,2084.0,2083.5,16.1775394]
[1773356837028,16.75690854,2084.2,2083.5,16.1775394]
[1773356837230,13.97,2084.1,2083.5,16.1775394]
[1773356838832,30.72690854,2084.1,2083.5,16.1775394]
[1773356839440,30.72690854,2084.1,2083.5,0.022]
[1773356839441,16.75690854,2084.0,2083.5,0.022]
[1773356839731,16.75690854,2084.0,2083.5,16.1775394]
[1773356839932,16.75690854,2084.0,2083.5,0.022]
[1773356840436,16.75690854,2084.0,2083.1,0.022]
[1773356841234,16.75690854,2084.0,2083.0,0.00445396]
[1773356841434,16.91090854,2084.0,2082.9,0.022]
[1773356841943,16.59349494,2083.8,2082.9,0.022]
[1773356842147,16.59349494,2083.8,2082.7,0.022]
[1773356842441,16.59349494,2083.6,2082.7,0.02476961]
[1773356843536,16.59349494,2083.4,2082.5,3.92088431]
[1773356843741,16.59349494,2083.2,2082.5,0.022]
[1773356843937,16.59349494,2083.2,2082.3,3.92088431]
[1773356844633,16.59752142,2083.2,2082.3,3.92088431]
[1773356845240,16.59752142,2083.2,2082.3,0.022]
[1773356846042,16.59349494,2083.0,2082.3,16.0804376]
[1773356847447,16.59349494,2083.0,2082.3,0.022]
[1773356848740,16.59349494,2083.0,2082.3,16.0804376]
[1773356848943,13.974,2083.0,2082.3,16.0804376]
[1773356849442,16.59349494,2082.9,2082.3,0.022]
[1773356853747,16.59349494,2082.9,2081.9,16.0804376]
[1773356853947,16.59349494,2082.9,2081.9,0.022]
[1773356855242,16.83350494,2082.9,2081.9,0.022]
[1773356855647,16.59349494,2082.7,2081.7,0.022]
[1773356855947,16.59349494,2082.5,2081.7,0.022]
[1773356856349,16.59349494,2082.5,2081.5,0.022]
[1773356856742,16.83401494,2082.5,2081.5,0.022]
[1773356856947,16.59349494,2082.5,2081.5,16.0804376]
[1773356857148,16.59349494,2082.3,2081.5,16.0804376]
[1773356857347,13.977,2082.2,2081.5,16.0804376]
[1773356857549,30.57049494,2082.2,2081.5,16.0804376]
[1773356857749,16.59349494,2082.1,2081.5,16.0804376]
[1773356858351,16.59349494,2082.4,2081.5,16.0804376]
[1773356858550,13.977,2082.3,2081.5,16.0804376]
[1773356858752,30.57049494,2082.3,2081.5,16.0804376]
[1773356859847,16.59349494,2082.2,2081.5,16.0804376]
[1773356860247,16.59349494,2082.2,2081.5,0.022]
[1773356862648,16.59349494,2082.2,2081.5,16.0804376]
[1773356863851,15.90478299,2082.7,2081.9,15.89563726]
[1773356864053,15.90478299,2082.6,2081.9,15.89563726]
[1773356864252,15.90478299,2082.6,2081.7,15.89563726]
[1773356865142,13.983,2082.5,2081.9,15.89563726]
[1773356865849,15.90478299,2082.9,2081.9,15.89563726]
[1773356866049,29.88778299,2082.8,2081.9,15.89563726]
[1773356866351,15.90478299,2082.6,2081.9,15.89563726]
[1773356866652,29.88778299,2082.6,2081.9,15.89563726]
[1773356867152,15.90478299,2082.5,2081.9,15.89563726]
[1773356869951,15.90478299,2082.5,2081.6,3.92819572]
[1773356870152,15.90478299,2082.5,2081.6,15.89563726]
[1773356870753,29.18332318,2082.4,2081.9,15.58000843]
[1773356871353,0.24,2083.0,2081.9,15.58000843]
[1773356871555,15.20132318,2082.8,2082.1,18.34657355]
[1773356872055,0.31202648,2083.2,2082.5,15.58000843]
[1773356872254,0.26769848,2083.2,2082.5,15.58000843]
[1773356873261,0.27171687,2083.2,2082.5,15.58398613]
[1773356873760,14.15171687,2083.2,2082.5,15.58398613]
[1773356874452,13.885,2083.9,2082.9,15.58000843]
[1773356874763,6.07086473,2083.7,2082.9,15.58000843]
[1773356874958,5.97797872,2083.6,2083.3,0.022]
[1773356875155,1.88213686,2083.7,2083.3,16.3826317]
[1773356875357,1.88213686,2084.1,2083.3,16.3826317]
[1773356875563,1.88213686,2084.1,2083.5,15.58000843]
[1773356875564,13.89454317,2084.1,2083.5,15.58000843]
[1773356875956,0.00354317,2084.1,2083.5,15.58000843]
[1773356876761,17.19488021,2084.5,2083.5,15.58000843]
[1773356877758,17.19946851,2084.5,2083.5,15.58000843]
[1773356878456,3.87042651,2084.4,2083.5,15.58000843]
[1773356878960,13.7965883,2084.5,2083.5,15.58000843]
[1773356879153,13.7965883,2084.5,2084.0,15.58000843]
[1773356879456,17.4982758,2084.5,2084.0,15.5839338]
[1773356879658,3.52858035,2084.4,2084.0,15.5839338]
[1773356880362,3.40357003,2084.3,2083.8,15.60200843]
[1773356880556,0.066,2084.1,2083.8,15.60200843]
[1773356881156,3.25664055,2084.1,2083.5,0.022]
[1773356881459,3.18612951,2083.8,2083.3,0.022]
[1773356881657,3.18612951,2083.8,2083.3,0.066]
[1773356882260,3.18612951,2083.8,2083.3,0.02515163]
[1773356882454,3.30695584,2083.6,2083.1,0.022]
[1773356882659,13.842,2083.7,2083.1,15.64600843]
[1773356883057,0.154,2083.8,2083.1,15.64600843]
[1773356884365,3.13121134,2083.8,2083.1,15.64600843]
[1773356885165,0.154,2083.8,2083.1,15.64600843]
[1773356885555,0.04056757,2083.8,2083.2,15.77224512]
[1773356885965,13.855,2084.3,2083.4,15.75196133]
[1773356886260,1.73907156,2084.2,2083.7,15.75196133]
[1773356886560,1.73907156,2084.2,2083.6,0.022]
[1773356886762,1.73907156,2084.2,2083.6,15.7709967]
[1773356887661,1.73907156,2084.2,2083.6,0.066]
[1773356888262,1.73907156,2084.2,2083.4,15.89200003]
[1773356888463,1.18314057,2084.0,2083.4,0.022]
[1773356888665,1.18314057,2084.0,2083.4,15.88850267]
[1773356888865,0.044,2084.1,2083.4,15.88850267]
[1773356889065,1.07029259,2084.1,2083.4,15.88850267]
[1773356889572,1.07029259,2084.1,2083.4,0.022]
[1773356889967,0.044,2084.1,2083.4,15.88951068]
[1773356897367,0.044,2084.1,2083.2,0.022]
[1773356897368,0.28388,2084.1,2083.2,0.022]
[1773356897573,0.066,2083.9,2083.2,16.07025694]
[1773356898673,0.066,2083.9,2083.2,16.03840878]
[1773356902174,0.066,2083.9,2083.2,0.022]
[1773356902379,0.088,2083.7,2083.0,17.38985892]
[1773356902579,13.789,2083.6,2083.0,17.38985892]
[1773356903281,0.088,2083.7,2083.0,17.38985892]
[1773356905483,17.78341168,2084.5,2083.0,30.94485892]
[1773356905678,17.76340976,2084.5,2083.6,17.35173837]
[1773356905885,0.23984,2084.4,2083.5,0.022]
[1773356906580,4.2406316,2084.4,2083.3,0.022]
[1773356906788,0.066,2083.9,2083.1,0.022]
[1773356906981,13.778,2083.8,2083.1,0.022]
[1773356907583,0.066,2083.9,2083.2,17.13096804]
[1773356907778,0.30637,2083.9,2083.2,17.13096804]
[1773356907983,0.30861,2083.9,2083.1,0.022]
[1773356908179,0.33167,2083.7,2082.9,0.022]
[1773356908385,0.088,2083.7,2082.9,17.15296804]
[1773356909990,0.34993,2083.6,2082.7,0.022]
[1773356910190,0.132,2083.4,2082.5,0.022]
[1773356910389,13.924,2083.3,2082.3,16.78929214]
[1773356911690,13.767,2083.2,2082.3,16.78929214]
[1773356915389,14.01157,2083.2,2082.3,16.78929214]
[1773356915589,13.767,2083.2,2082.3,16.56632112]
[1773356915988,0.154,2083.3,2082.3,16.56632112]
[1773356916185,14.00271,2083.1,2082.3,16.56632112]
[1773356916692,14.00241,2083.1,2082.3,16.56632112]
[1773356916889,14.0076,2083.1,2082.1,16.55847764]
[1773356917194,0.70095,2083.0,2081.7,16.55847764]
[1773356917789,0.24002,2082.8,2081.7,10.95847764]
[1773356917996,1.3613119,2082.7,2081.7,10.95847764]
[1773356918196,1.3629819,2082.6,2081.5,14.0605809]
[1773356918390,1.1048219,2082.2,2081.3,14.0605809]
[1773356918596,0.24008,2082.3,2081.1,14.0605809]
[1773356918597,1.3672319,2082.0,2081.1,14.0605809]
[1773356919095,1.3516519,2082.0,2081.1,14.0605809]
[1773356919395,1.3516519,2082.0,2081.1,0.022]
[1773356920896,1.3516519,2082.0,2081.1,14.0605809]
[1773356922200,1.3516519,2082.0,2081.1,0.022]
[1773356922401,1.3516519,2082.0,2080.9,14.0605809]
[1773356924604,0.56938035,2081.8,2080.9,0.022]
[1773356924802,0.24012,2081.9,2080.9,0.022]
[1773356924803,0.85667035,2081.7,2080.9,0.022]
[1773356925096,0.73241824,2081.5,2080.9,0.022]
[1773356925402,0.68966824,2081.2,2080.9,0.022]
[1773356925602,14.44249769,2081.2,2080.9,0.022]
[1773356925903,13.99903,2081.1,2080.9,13.95179484]
[1773356926504,13.99903,2081.1,2080.9,12.80187841]
[1773356926699,13.99903,2081.1,2080.8,13.35719401]
[1773356927206,15.0721505,2081.1,2080.7,13.37919401]
[1773356927807,0.00482945,2081.2,2080.5,0.022]
[1773356927808,1.39510939,2081.0,2080.5,13.34758957]
[1773356928011,1.35373578,2080.8,2080.5,0.022]
[1773356928908,0.24895945,2081.2,2080.3,13.34467322]
[1773356929109,0.24761945,2081.2,2080.3,13.34467322]
[1773356929509,0.00482945,2081.2,2080.3,13.34467322]
[1773356930416,0.73087871,2081.2,2080.3,13.34467322]
[1773356931411,0.73087871,2081.2,2080.3,0.022]
[1773356931612,0.69411533,2081.0,2080.1,0.022]
[1773356932117,0.81717158,2080.6,2079.9,13.63152824]
[1773356932410,14.31380158,2080.5,2079.9,13.63152824]
[1773356932619,13.737,2080.5,2079.9,13.63152824]
[1773356932813,0.47445037,2081.1,2079.9,13.63152824]
[1773356933015,14.21145037,2081.0,2079.9,13.63152824]
[1773356933219,0.47445037,2080.9,2079.9,13.63152824]
[1773356934516,0.34522215,2080.8,2079.9,13.63152824]
[1773356935413,0.48567114,2080.7,2079.9,13.63152824]
[1773356935615,0.48586114,2080.6,2079.9,13.63152824]
[1773356935811,0.22003232,2080.7,2079.9,13.63152824]
[1773356936209,0.10468364,2080.9,2079.9,13.63152824]
[1773356936815,13.8488571,2080.8,2079.9,13.63152824]
[1773356937120,0.00647686,2080.7,2079.9,13.63152824]
[1773356939321,0.24964686,2080.7,2079.9,13.63152824]
[1773356939521,0.24317,2080.7,2079.9,13.63152824]
[1773356941417,0.24023,2081.0,2079.9,13.63152824]
[1773356941617,13.95575,2080.9,2079.9,13.63152824]
[1773356943915,13.94801,2080.9,2079.9,13.63152824]
[1773356944114,0.25059945,2081.2,2079.9,13.63152824]
[1773356944319,13.95969,2081.1,2079.9,13.63152824]
[1773356944617,13.95401,2081.0,2079.9,13.63152824]
[1773356945323,0.489,2080.9,2079.9,13.63152824]
[1773356945727,0.24029,2080.5,2079.7,0.022]
[1773356946115,0.24029,2080.5,2079.5,13.63152824]
[1773356946315,0.50698,2080.5,2079.5,13.63152824]
[1773356947219,4.49299444,2080.5,2079.5,13.63152824]
[1773356948822,9.03130444,2080.5,2079.5,13.38647824]
[1773356949220,9.03130444,2080.5,2079.3,13.63152824]
[1773356949421,17.95550444,2080.4,2079.3,13.63152824]
[1773356949625,13.97431,2080.3,2079.3,13.63152824]
[1773356950127,13.97615,2080.2,2079.3,13.63152824]
[1773356953928,0.28815,2080.2,2079.3,13.63152824]
[1773356954129,13.9414,2080.1,2079.3,13.63152824]
[1773356956624,13.678,2080.0,2079.3,13.63152824]
[1773356957325,3.98601444,2080.5,2079.3,13.63152824]
[1773356957528,13.677,2080.4,2079.3,13.63152824]
[1773356959730,13.92033,2080.4,2079.3,13.63152824]
[1773356960027,17.90634444,2080.4,2079.3,13.63152824]
[1773356960229,17.66301444,2080.4,2079.3,13.63152824]
[1773356960422,17.90365444,2080.4,2079.3,13.63152824]
[1773356960625,13.91766,2080.4,2079.3,13.63152824]
[1773356960822,17.90367444,2080.4,2079.3,13.63152824]
[1773356961628,0.49956,2080.3,2079.3,13.63152824]
[1773356962124,4.48557444,2080.3,2079.3,13.63152824]
[1773356962331,3.98601444,2080.2,2079.3,13.38942824]
[1773356962522,0.24031,2080.3,2079.3,13.38942824]
[1773356962523,4.22632444,2080.3,2079.3,13.38942824]
[1773356962723,13.93189,2080.1,2079.3,13.38942824]
[1773356969230,0.24034,2080.0,2079.3,13.12662824]
[1773356969435,11.5149267,2079.8,2079.1,11.81720775]
[1773356969829,11.5149267,2079.8,2078.9,0.022]
[1773356969830,11.7963667,2079.8,2078.9,11.81720775]
[1773356970138,11.7962467,2079.7,2078.9,11.81720775]
[1773356970433,11.7982967,2079.5,2078.9,11.81720775]
[1773356973237,11.5149267,2079.5,2078.9,11.57268775]
[1773356973740,11.7828667,2079.5,2078.9,11.57268775]
[1773356974239,0.26794,2079.5,2078.9,11.57268775]
[1773356974435,2.04978481,2079.4,2078.9,11.57268775]
[1773356974932,2.02956481,2079.4,2078.9,11.57268775]
[1773356975127,0.00567222,2079.7,2078.9,11.57268775]
[1773356975334,13.704,2079.6,2078.9,11.57268775]
[1773356975732,13.706,2079.5,2078.9,11.57268775]
[1773356976838,25.2209267,2079.5,2078.9,11.57268775]
[1773356977039,13.706,2079.5,2078.9,11.57268775]
[1773356977235,9.64292,2079.5,2078.9,11.57268775]
[1773356977439,7.61138,2079.5,2078.9,11.57268775]
[1773356980638,11.5149267,2079.4,2078.9,11.57268775]
[1773356981540,11.5149267,2079.4,2078.7,11.81720775]
[1773356982341,19.1263067,2079.5,2078.7,11.81720775]
[1773356982538,11.5149267,2079.4,2078.7,11.81720775]
[1773356983037,15.86129357,2079.7,2078.7,11.81720775]